Cogmind - Beta 13 @@@ ROGUE MODE // 2024.04.05 @ 07:53:38 Player: DiscountHorde Result: Self-destructed Performance ------------- Evolutions (1) 500 Regions Visited (2) 400 Robots Destroyed (10) 50 Value Destroyed (304) 304 Prototype IDs (1) 20 Alien Tech Used (0) 0 Bonus (0) 0 TOTAL SCORE: 1274 Bonus ------- None Cogmind --------- Core Integrity 228/400 Matter 219/300 Energy 100/100 System Corruption 0% Temperature Cool (94) Movement Walking (190) Ox1 Location -9/Materials Parts ------- > --- POWER (2) -------- (None) > --- PROPULSION (3) --- Aluminum Leg Aluminum Leg > --- UTILITY (2) ------ Large Storage Unit > --- WEAPON (2) ------- Medium Laser > --- INVENTORY (15) --- Small Storage Unit Large Storage Unit Beam Cannon Beam Cannon Beam Cannon Beam Cannon Advanced Beam Cannon Light Assault Rifle Peak State ------------ > --- POWER ------------ Ion Engine > --- PROPULSION ------- Light Treads > --- UTILITY ---------- Large Storage Unit Structural Scanner > --- WEAPON ----------- Beam Cannon Advanced Beam Cannon > --- INVENTORY -------- Light Ion Engine Aluminum Leg Aluminum Leg Small Storage Unit Large Storage Unit EM Pulse Gun Medium Laser Medium Laser Beam Cannon Beam Cannon Beam Cannon [Rating: 9] Favorites ----------- Power Ion Engine Engine Ion Engine Propulsion Light Treads Treads Light Treads Leg Aluminum Leg Utility Small Storage Unit Device Structural Scanner Storage Small Storage Unit Processor Transport Network Coupler Weapon Small Laser Energy Gun Small Laser Energy Cannon Beam Cannon Build | -11 -10 -9 ------- Run | Yrd Mat Mat Slots Evolved 2 | . . 2 Power 1 | . . 1 Propulsion 1 | . . 1 Utility . | . . . Weapon . | . . . Parts Attached 18 | 6 4 8 Power 2 | 1 . 1 Engine 2 | 1 . 1 Core . | . . . Reactor . | . . . Propulsion 4 | 2 . 2 Treads 2 | 2 . . Leg 2 | . . 2 Wheel . | . . . Hover . | . . . Flight . | . . . Utility 4 | 1 2 1 Device 1 | . 1 . Storage 2 | 1 . 1 Processor 1 | . 1 . Hackware . | . . . Protection . | . . . Artifact . | . . . Weapon 8 | 2 2 4 Energy Gun 6 | 2 1 3 Energy Cannon 2 | . 1 1 Ballistic Gun . | . . . Ballistic Cannon . | . . . Launcher . | . . . Special Weapon . | . . . Impact Weapon . | . . . Slashing Weapon . | . . . Piercing Weapon . | . . . Special Melee Weapon . | . . . Unidentified Prototypes 1 | . . 1 Parts Lost 8 | . 2 6 Power 2 | . . 2 Propulsion 2 | . 1 1 Utility 1 | . . 1 Weapon 3 | . 1 2 Highest Loss Streak 3 | . 2 3 To Critical Strikes . | . . . Average Slot Usage (%) 80 | . 91 66 Engine 12 | . 14 10 Treads 16 | . 22 9 Leg 1 | . . 3 Device 5 | . 1 10 Storage 12 | . 14 11 Processor 5 | . 9 . Energy Gun 19 | . 22 15 Energy Cannon 5 | . 5 5 Naked Turns . | . . . Heaviest Build 31 | 12 16 31 Greatest Support 40 | 40 40 20 Greatest Overweight (x) 9 | . . 9 Average Overweight (x) . | . . 1 Largest Inventory Capacity 15 | 8 8 15 Average Capacity 10 | 7 8 14 Most Carried 11 | 5 8 11 Average Carried 6 | 2 5 9 Final Capacity 15 | 8 8 15 Final Carried 8 | 4 8 8 Class Distribution -------------------- 100% | Mutant Dominant Class ---------------- Mutant | -10/Materials Mutant | -9/Materials Resources | -11 -10 -9 ----------- Run | Yrd Mat Mat Matter Collected 249 | 157 57 35 Remotely . | . . . Salvage Created 378 | . 338 40 Parts 12 | . 7 5 Haulers Intercepted . | . . . Recyclers Shooed 1 | . . 1 Parts Field Recycled . | . . . Retrieved Matter . | . . . Parts Self-Destructed . | . . . Prevented . | . . . Kills | -11 -10 -9 ------- Run | Yrd Mat Mat Combat Hostiles Destroyed 10 | . 7 3 Guns 8 | . 5 3 AOE 2 | . 2 . Classes Destroyed 2 | . 1 1 Swarmer 3 | . . 3 Grunt 7 | . 7 . Best Kill Streak 2 | . 2 2 Combat Bots Only 2 | . 2 2 Max Kills in Single Turn 2 | . 2 1 Gunslinging . | . . . Exploded 2 | . 2 . Melee . | . . . Uniques/NPCs Destroyed . | . . . Combat | -11 -10 -9 -------- Run | Yrd Mat Mat Hostile Shots Fired 133 | . 48 85 Missed 32 | . 13 19 Damage Taken 1125 | . 437 688 Core 242 | . 70 172 Absorbed by Shields . | . . . Core Remaining (%) 86 | 100 72 . Volleys Fired 56 | 13 27 16 Largest 2 | 1 2 2 Hottest 100 | 40 100 100 Shots Fired 96 | 13 54 29 Gun 93 | 13 51 29 Cannon 3 | . 3 . Launcher . | . . . Special . | . . . Kinetic . | . . . Thermal 83 | 13 49 21 Explosive . | . . . Electromagnetic 13 | . 5 8 Robot Hit Streak 9 | 3 9 3 Robot Miss Streak 4 | 3 2 4 Penetration Max . | . . . Secondary Targets . | . . . Shots Hit Robots 64 | 8 41 15 Core Hits 23 | 2 15 6 Critical Kills . | . . . Critical Parts Destroyed . | . . . Critical Strikes 2 | . . 2 Burn 2 | . . 2 Melee Attacks . | . . . Impact . | . . . Slashing . | . . . Piercing . | . . . Sneak Attacks . | . . . Combat Hostiles . | . . . Follow-up Attacks . | . . . Damage Inflicted 839 | 97 539 203 Guns 753 | 86 464 203 Cannons . | . . . Explosions 75 | . 75 . Melee . | . . . Ramming 11 | 11 . . Kinetic . | . . . Thermal 694 | 86 471 137 Explosive . | . . . Electromagnetic 134 | . 68 66 Impact . | . . . Slashing . | . . . Piercing . | . . . Highest Corruption . | . . . Average Corruption . | . . . Corruption Purged . | . . . Corruption Blocked . | . . . Overload Shots . | . . . Overflow Damage . | . . . Projectiles . | . . . Explosions . | . . . Melee . | . . . Knockbacks . | . . . Impact . | . . . Kinetic . | . . . Secondary . | . . . Self-Inflicted Damage . | . . . Shots . | . . . Rammed 3 | 3 . . Targets Rammed 3 | 3 . . Kicked . | . . . Crushed . | . . . Highest Temperature 182 | . 182 168 Average Temperature 76 | . 81 67 Received Heat Transfer 357 | . 240 117 Siege Activations . | . . . Robots Corrupted . | . . . Combat Hostiles . | . . . Parts Fried . | . . . Impact Corruptions . | . . . Robots Melted . | . . . Combat Hostiles . | . . . Parts Melted 5 | . 3 2 Heat Transferred 1705 | 200 950 555 Parts Sabotaged . | . . . Parts Stolen . | . . . Parts Stripped . | . . . Power Chain Reactions 1 | . 1 . Alert | -11 -10 -9 ------- Run | Yrd Mat Mat Peak Influence 191 | . 191 55 Initial . | . . . Average 26 | . 55 5 Maximum Alert Level . | . . . Low Security (%) 100 | 100 100 100 Level 1 . | . . . Level 2 . | . . . Level 3 . | . . . Level 4 . | . . . Level 5 . | . . . High Security . | . . . Max Security . | . . . Squads Dispatched 2 | . 2 . Investigation 1 | . 1 . Extermination . | . . . Reinforcement 1 | . 1 . Assault . | . . . Garrison . | . . . Intercept . | . . . Searches Triggered . | . . . Construction Impeded . | . . . Haulers Reinforced . | . . . Active Scanning Responses . | . . . Cargo Convoy Interrupts . | . . . Stealth | -11 -10 -9 --------- Run | Yrd Mat Mat Distress Signals 3 | . 1 2 Communications Jammed . | . . . Distress Signals . | . . . Times Spotted 25 | . 12 13 Peak Tracking Total 9 | . 3 9 Tactical Retreats . | . . . Traps | -11 -10 -9 ------- Run | Yrd Mat Mat Traps Triggered . | . . . Indirectly . | . . . Trap Hack Attempts . | . . . Triggered . | . . . Disarmed 2 | . 2 . Reprogrammed . | . . . Reused . | . . . Traps Extracted . | . . . Installed . | . . . Triggered . | . . . Machines | -11 -10 -9 ---------- Run | Yrd Mat Mat Machines Disabled 1 | . 1 . Max in Single Turn 1 | . 1 . Machines Repaired . | . . . Machines Dismantled . | . . . Machines Sabotaged . | . . . Overloaded Fab Kills . | . . . Hacking | -11 -10 -9 --------- Run | Yrd Mat Mat Machines Accessed 1 | . 1 . Terminals 1 | . 1 . Fabricators . | . . . Repair Stations . | . . . Recycling Units . | . . . Scanalyzers . | . . . Garrison Access . | . . . Total Hacks 4 | . 4 . Successful 3 | . 3 . Failed 1 | . 1 . Catastrophic . | . . . Database Lockouts . | . . . Manual . | . . . Terminals 4 | . 4 . Fabricators . | . . . Repair Stations . | . . . Recycling Units . | . . . Scanalyzers . | . . . Garrison Access . | . . . Terminal Hacks 3 | . 3 . Alert Level 1 | . 1 . Locate Traps 1 | . 1 . Disarm Traps 1 | . 1 . Fabricator Hacks . | . . . Repair Station Hacks . | . . . Recycling Unit Hacks . | . . . Scanalyzer . | . . . Garrison Access Hacks . | . . . Unauthorized Hacks . | . . . Terminals . | . . . Fabricators . | . . . Repair Stations . | . . . Recycling Units . | . . . Scanalyzers . | . . . Garrison Access . | . . . Data Cores Recovered . | . . . Used . | . . . Hacking Detections 1 | . 1 . Full Trace Events 1 | . 1 . Feedback Events . | . . . Feedback Blocked . | . . . Robot Schematics Acquired . | . . . Robots Built . | . . . Authchips . | . . . Time . | . . . Total Robot Build Rating . | . . . Part Schematics Acquired . | . . . Parts Built . | . . . Authchips . | . . . Time . | . . . Total Part Build Rating . | . . . Parts Repaired . | . . . Time . | . . . Parts Recycled . | . . . Recycled Matter . | . . . Retrieved Matter . | . . . Retrieved Components . | . . . Parts Scanalyzed . | . . . Part Schematics Acquired . | . . . Parts Damaged . | . . . Bothacking | -11 -10 -9 ------------ Run | Yrd Mat Mat Used RIF Installer . | . . . Robots Hacked . | . . . Non-combat . | . . . Combat . | . . . Robot Hacks Applied . | . . . Relay Couplers Released . | . . . Fabnet Peak Effective % . | . . . Robots Rewired . | . . . Allies Hacked . | . . . Hacks Repelled . | . . . Allies | -11 -10 -9 -------- Run | Yrd Mat Mat Total Allies . | . . . Largest Group . | . . . Highest-Rated Group . | . . . Highest-Rated Ally . | . . . Total Orders . | . . . Ally Attacks . | . . . Total Damage . | . . . Kills . | . . . Allies Corrupted . | . . . Allies Melted . | . . . Intel | -11 -10 -9 ------- Run | Yrd Mat Mat Robot Analysis Total . | . . . Derelict Logs Recovered . | . . . Drone Launches . | . . . Drone Recoveries . | . . . Exploration | -11 -10 -9 ------------- Run | Yrd Mat Mat Turns Passed 1142 | 202 507 433 Spaces Moved 510 | 110 249 151 Core 20 | 18 . 2 Treads 476 | 92 249 135 Legs 14 | . . 14 Wheels . | . . . Hover . | . . . Flight . | . . . Fastest Speed 50 | 50 160 160 Average Speed 178 | 142 160 235 Slowest Speed 500 | 160 160 500 Overloaded Moves . | . . . Propulsion Burnouts . | . . . Robots Hopped . | . . . Cave-ins Triggered . | . . . Exploration Rate (%) 21 | 8 42 13 Regions Visited 2 Branch Regions . Pre-discovered Areas . | . . . Known Exits Taken . | . . . Unknown Exits Taken 2 | 1 1 . Scrap Searched . | . . . Spaces Dug . | . . . Terrain Destroyed . | . . . Melee . | . . . Projectile . | . . . AOE . | . . . Terrain Rammed . | . . . Walls Destroyed . | . . . Machines Disabled . | . . . Actions | -11 -10 -9 --------- Run | Yrd Mat Mat Total 644 | 141 305 198 Wait 29 | . 12 17 Move 508 | 109 248 151 Hop . | . . . Pick Up 25 | 10 10 5 Fast Attach . | . . . Attach 13 | 6 3 4 Detach . | . . . Swap 5 | . 1 4 Drop 5 | . 4 1 Fire 56 | 13 27 16 Melee . | . . . Ram . | . . . Kick . | . . . Crush 3 | 3 . . Escape Stasis . | . . . Rewire . | . . . Trap . | . . . Miscellaneous . | . . . Route ------- -11/Scrapyard -10/Materials -9/Materials History --------- Turn | Location | Event 6 | -11/Scrapyard | Discovered new exit (range 16) 203 | -11/Scrapyard | Entered Materials 315 | -10/Materials | Build established: Mutant 591 | -10/Materials | Discovered new exit (range 16) 710 | -10/Materials | Entered another Materials area 710 | -9/Materials | Evolved 2 slots: Power x1, Propulsion x1 1123 | -9/Materials | Lost 3 parts (1p1n1w) 1143 | -9/Materials | Self-destructed Last Messages --------------- Lgt. Treads destroyed. Ion Engine destroyed. S-10 Pest destroyed. Med. Laser destroyed. S-10 Pest IFF system glitched. S-10 Pest destroyed. Door malfunctions. R-06 Scavenger collects Flight Unit. R-06 Scavenger collects Lgt. Ion Engine. Y-45 Defender suffers critical hit (Burn). R-06 Scavenger collects Flight Unit. K-01 Serf collects debris. Acquired 20 matter. K-01 Serf collects debris. Acquired Lgt. Assault Rifle. K-01 Serf collects debris. Acquired 15 matter. Structural Scanner destroyed. EM Pulse Gun destroyed. Lgt. Ion Engine destroyed. Map ----- +----------------------------------------------------+ | ???????????????????????????????????????? | | ???????????????????????????????????????? | | ???????????????????????????????????????? | | ???????????????????????????????????????? | | ???????????????????????????????????????? | | ???????????????????????????????????????? | | ???????????????????????????????????????? | | ???????????????????????????????????????? | | ???????????????????????????????????????? | | ???????????????????????????????????????? | | ???????????????????????????????????????? | | ???????????????????????????????????????? | | ???????????????????????????????????????? | | ?????????#######???????????????????????? | | ????????########???????????????????????? | | ????????### ##???????????????????????? | | ???????? + ##???????????????????????? | | ?????????## ##???????????????????????? | | ?????????## ##???????????????????????? | | ??## ????## #######??????????????????? | | ??## ????##w #######??????????????????? | | ??## ### ## # ?????????????????? | | ??## ####Y### ## ?????????????????? | | ??## # # ##??????????? | | ??## ### #####/####??????????? | | ??## @=s s s k tr ????? | | ??#####+## =*Ys #########??????????? | | ??# # w # # ??????????? | | ???????? # # # ??????????? | | ???????? # k + """ # ??????????? | | ???????? # # """ # ??????????? | | ???????? # #### ## """ # ??????????? | | ???????? # ####+## # ??????????? | | ????????## # #########??????????? | | ????????## # #########??????????? | | ????????## + ##?????????????????? | | ????????## # #######????????????? | | ????????## #############????????????? | | ????????## ### ##????????????? | | ????###### ### # ????????????? | | ????###### ### # ????????????? | | ????## # """ # ????????????? | | ????## + """"" # ????????????? | | ????## # """"" # ????????????? | | ????## ######## """"" # ????????????? | | ###### ######## """ # ????????????? | | ###### ##????## # ????????????? | | # # ##################????????????? | | # # ####### ######### ????????????? | | # # # """ # ????????????????????? | +----------------------------------------------------+ Best States ------------- Heat Dissipation 28 Energy Generation 10 Energy Capacity 250 Matter Stores 244 Matter Capacity 300 Sight Range 16 Terrain Scan Density 10 Evasion (%) 40 Recoil Reduction 2 Item Schematics ----------------- None Robot Schematics ------------------ None Fabricated ------------ Nothing Alien Tech Used ----------------- None Achievements -------------- None Challenges ------------ None Game ------ Seed TrapReflectiveFilter Manual? 0 Play Time 00:09:29 Cumulative 4.7 hours Start 2024.04.04 @ 16:58:06 End 2024.04.05 @ 07:53:38 Sessions 5 Manual Loads 0 Difficulty Rogue Special Mode None Game No. 13 Rogue 13 Adventurer 0 Explorer 0 Win Type - Total 0 Types 0/0/0/0/0/0/0/0/0 Lore% 3 Gallery% 12 Achievement% 11 Wizard Run 0 Options --------- Layout 1 ASCII 0 Keyboard 0 Movement Arrows Keybinds 0 Fullscreen 1 Font 24/Smallcaps Map View 50x35 Zoom Use 0% Tactical HUD 0 Map Filters NONE Filters NONE Steam 1 RUN: ba747391-a741-495c-93b4-ea420686172c